[Event "Titled Tuesday Blitz July 20 2021"]
[White "Triapishko, Alexandr"]
[Black "Kretov, Evgenij"]
[WhiteFideId "14122286"]
[BlackFideId "4167821"]
[WhiteElo "2490"]
[BlackElo "2400"]
[Result "1-0"]
[Round "08"]
[TimeControl "180+1"]
[Date "2021.07.20"]
[WhiteClock "0:00:03"]
[BlackClock "0:00:14"]

1. d4 {[%clk 0:03:00]}  Nf6 {[%clk 0:02:59]} 2. c4 {[%clk 0:02:57]}  c5 {[%clk 0:02:59]} 3. d5 {[%clk 0:02:51]}  e5 {[%clk 0:02:59]} 4. Nc3 {[%clk 0:02:47]}  d6 {[%clk 0:03:00]} 5. e4 {[%clk 0:02:46]}  Be7 {[%clk 0:03:00]} 6. Nf3 {[%clk 0:02:40]}  O-O {[%clk 0:03:00]} 7. Be2 {[%clk 0:02:39]}  Ne8 {[%clk 0:03:00]} 8. O-O {[%clk 0:02:35]}  Nd7 {[%clk 0:03:00]} 9. Ne1 {[%clk 0:02:25]}  Bg5 {[%clk 0:02:59]} 10. Nd3 {[%clk 0:02:25]}  g6 {[%clk 0:02:54]} 11. a3 {[%clk 0:02:21]}  Bxc1 {[%clk 0:02:53]} 12. Qxc1 {[%clk 0:02:20]}  a5 {[%clk 0:02:45]} 13. f4 {[%clk 0:02:18]}  exf4 {[%clk 0:02:43]} 14. Qxf4 {[%clk 0:02:17]}  Qe7 {[%clk 0:02:41]} 15. Bg4 {[%clk 0:02:16]}  f6 {[%clk 0:02:34]} 16. Bxd7 {[%clk 0:02:04]}  Bxd7 {[%clk 0:02:33]} 17. a4 {[%clk 0:01:55]}  Ng7 {[%clk 0:02:28]} 18. Ra3 {[%clk 0:01:50]}  b6 {[%clk 0:02:12]} 19. Rb3 {[%clk 0:01:38]}  Rab8 {[%clk 0:02:12]} 20. Nb5 {[%clk 0:01:35]}  Bxb5 {[%clk 0:02:09]} 21. Rxb5 {[%clk 0:01:36]}  Ne8 {[%clk 0:01:54]} 22. Nxc5 {[%clk 0:01:24]}  Nc7 {[%clk 0:01:54]} 23. Ne6 {[%clk 0:01:24]}  Nxb5 {[%clk 0:01:39]} 24. cxb5 {[%clk 0:01:19]}  Rfc8 {[%clk 0:01:25]} 25. Nd4 {[%clk 0:01:12]}  Rb7 {[%clk 0:01:14]} 26. Nc6 {[%clk 0:01:10]}  Qf8 {[%clk 0:01:04]} 27. Qxf6 {[%clk 0:00:34]}  Rf7 {[%clk 0:01:03]} 28. Qxf7+ {[%clk 0:00:30]}  Qxf7 {[%clk 0:01:03]} 29. Rxf7 {[%clk 0:00:31]}  Kxf7 {[%clk 0:01:04]} 30. Kf2 {[%clk 0:00:32]}  Kf6 {[%clk 0:00:59]} 31. Ke3 {[%clk 0:00:31]}  Kg5 {[%clk 0:00:50]} 32. e5 {[%clk 0:00:25]}  Re8 {[%clk 0:00:42]} 33. Ke4 {[%clk 0:00:17]}  h5 {[%clk 0:00:40]} 34. h3 {[%clk 0:00:04]}  Kh4 {[%clk 0:00:38]} 35. Kf4 {[%clk 0:00:02]}  dxe5+ {[%clk 0:00:30]} 36. Nxe5 {[%clk 0:00:02]}  Rf8+ {[%clk 0:00:30]} 37. Ke4 {[%clk 0:00:03]}  Rf6 {[%clk 0:00:21]} 38. Nf3+ {[%clk 0:00:01]}  Kg3 {[%clk 0:00:21]} 39. Ke5 {[%clk 0:00:02]}  Rf8 {[%clk 0:00:21]} 40. d6 {[%clk 0:00:02]}  Kxg2 {[%clk 0:00:21]} 41. Ng5 {[%clk 0:00:03]}  Rf5+ {[%clk 0:00:21]} 42. Ke6 {[%clk 0:00:03]}  Rxg5 {[%clk 0:00:15]} 43. d7 {[%clk 0:00:03]}  Kxh3 {[%clk 0:00:14]} 44. d8=Q {[%clk 0:00:04]}  Rg2 {[%clk 0:00:13]} 45. Qxb6 {[%clk 0:00:03]}  g5 {[%clk 0:00:14]} 46. Qxa5 {[%clk 0:00:03]}  g4 {[%clk 0:00:14]} 47. b6 {[%clk 0:00:03]}  g3 {[%clk 0:00:14]} 48. Qxh5# {[%clk 0:00:03]} 1-0


[Site "https://www.chess.com"]

[Event "Titled Tuesday Blitz July 20 2021"]
[White "Tsaruk, Maksim"]
[Black "Krallis, Christos"]
[WhiteFideId "13511173"]
[BlackFideId "4298896"]
[WhiteElo "2184"]
[BlackElo "2193"]
[Result "1-0"]
[Round "08"]
[TimeControl "180+1"]
[Date "2021.07.21"]
[WhiteClock "0:00:03"]
[BlackClock "0:00:03"]

1. Nf3 {[%clk 0:03:00]}  Nf6 {[%clk 0:02:55]} 2. d4 {[%clk 0:03:01]}  d5 {[%clk 0:02:55]} 3. Bf4 {[%clk 0:03:02]}  c5 {[%clk 0:02:53]} 4. e3 {[%clk 0:03:01]}  e6 {[%clk 0:02:52]} 5. c3 {[%clk 0:02:59]}  Bd6 {[%clk 0:02:50]} 6. Bg3 {[%clk 0:02:59]}  Qc7 {[%clk 0:02:49]} 7. Nbd2 {[%clk 0:02:59]}  Nbd7 {[%clk 0:02:39]} 8. Be2 {[%clk 0:02:54]}  O-O {[%clk 0:02:35]} 9. O-O {[%clk 0:02:54]}  Bxg3 {[%clk 0:02:35]} 10. hxg3 {[%clk 0:02:54]}  e5 {[%clk 0:02:36]} 11. Rc1 {[%clk 0:02:43]}  e4 {[%clk 0:02:20]} 12. Ne1 {[%clk 0:02:38]}  cxd4 {[%clk 0:02:10]} 13. cxd4 {[%clk 0:02:31]}  Qd6 {[%clk 0:02:10]} 14. Qc2 {[%clk 0:02:07]}  Rd8 {[%clk 0:01:58]} 15. Qc7 {[%clk 0:01:52]}  Nf8 {[%clk 0:01:57]} 16. Qxd6 {[%clk 0:01:45]}  Rxd6 {[%clk 0:01:56]} 17. Nc2 {[%clk 0:01:41]}  Ne6 {[%clk 0:01:39]} 18. Nb3 {[%clk 0:01:40]}  Ng5 {[%clk 0:01:13]} 19. Nb4 {[%clk 0:01:37]}  Rb6 {[%clk 0:01:09]} 20. a3 {[%clk 0:01:27]}  Bg4 {[%clk 0:01:06]} 21. Bxg4 {[%clk 0:01:26]}  Nxg4 {[%clk 0:01:06]} 22. Rc5 {[%clk 0:01:13]}  Nf6 {[%clk 0:00:46]} 23. Rfc1 {[%clk 0:01:13]}  h6 {[%clk 0:00:35]} 24. R1c3 {[%clk 0:01:01]}  Ne6 {[%clk 0:00:28]} 25. Nxd5 {[%clk 0:00:44]}  Nxd5 {[%clk 0:00:14]} 26. Rxd5 {[%clk 0:00:43]}  a5 {[%clk 0:00:15]} 27. Rxa5 {[%clk 0:00:12]}  Rxa5 {[%clk 0:00:14]} 28. Nxa5 {[%clk 0:00:13]}  Rxb2 {[%clk 0:00:15]} 29. Rb3 {[%clk 0:00:14]}  Ra2 {[%clk 0:00:14]} 30. Nxb7 {[%clk 0:00:14]}  Ra1+ {[%clk 0:00:13]} 31. Kh2 {[%clk 0:00:14]}  Ra2 {[%clk 0:00:13]} 32. d5 {[%clk 0:00:12]}  Ng5 {[%clk 0:00:13]} 33. d6 {[%clk 0:00:10]}  Rd2 {[%clk 0:00:12]} 34. Rb4 {[%clk 0:00:07]}  Kf8 {[%clk 0:00:03]} 35. Rd4 {[%clk 0:00:06]}  Rxd4 {[%clk 0:00:03]} 36. exd4 {[%clk 0:00:06]}  Ke8 {[%clk 0:00:04]} 37. Nc5 {[%clk 0:00:06]}  Kd8 {[%clk 0:00:02]} 38. g4 {[%clk 0:00:05]}  g6 {[%clk 0:00:02]} 39. Kg3 {[%clk 0:00:05]}  f5 {[%clk 0:00:03]} 40. gxf5 {[%clk 0:00:05]}  gxf5 {[%clk 0:00:04]} 41. Kf4 {[%clk 0:00:06]}  Nf7 {[%clk 0:00:04]} 42. Kxf5 {[%clk 0:00:03]}  Nxd6+ {[%clk 0:00:05]} 43. Kg6 {[%clk 0:00:04]}  Nb5 {[%clk 0:00:06]} 44. Nxe4 {[%clk 0:00:03]}  Nxa3 {[%clk 0:00:05]} 45. Kxh6 {[%clk 0:00:04]}  Nc2 {[%clk 0:00:06]} 46. d5 {[%clk 0:00:04]}  Nb4 {[%clk 0:00:06]} 47. d6 {[%clk 0:00:04]}  Nd3 {[%clk 0:00:06]} 48. g4 {[%clk 0:00:04]}  Kd7 {[%clk 0:00:06]} 49. g5 {[%clk 0:00:04]}  Ke6 {[%clk 0:00:06]} 50. g6 {[%clk 0:00:04]}  Ne5 {[%clk 0:00:05]} 51. g7 {[%clk 0:00:04]}  Nf7+ {[%clk 0:00:05]} 52. Kh5 {[%clk 0:00:04]}  Kf5 {[%clk 0:00:02]} 53. g8=Q {[%clk 0:00:03]}  Ne5 {[%clk 0:00:03]} 54. Ng3+ {[%clk 0:00:02]}  Kf6 {[%clk 0:00:02]} 55. Qg5+ {[%clk 0:00:02]}  Kf7 {[%clk 0:00:03]} 56. Qxe5 {[%clk 0:00:03]} 1-0


[Site "https://www.chess.com"]

[Event "Titled Tuesday Blitz July 20 2021"]
[White "Tsotsonava, Elene"]
[Black "Martins, Igor Carvalho Ribeiro"]
[WhiteFideId "13615939"]
[BlackFideId "2162962"]
[WhiteElo "1847"]
[BlackElo "2521"]
[Result "0-1"]
[Round "08"]
[TimeControl "180+1"]
[Date "2021.07.21"]
[WhiteClock "0:00:03"]
[BlackClock "0:00:18"]

1. e4 {[%clk 0:02:06]}  c5 {[%clk 0:02:57]} 2. Nf3 {[%clk 0:02:06]}  d6 {[%clk 0:02:57]} 3. d4 {[%clk 0:02:07]}  cxd4 {[%clk 0:02:57]} 4. Nxd4 {[%clk 0:02:08]}  Nf6 {[%clk 0:02:57]} 5. Nc3 {[%clk 0:02:09]}  a6 {[%clk 0:02:58]} 6. Bg5 {[%clk 0:02:09]}  e6 {[%clk 0:02:57]} 7. f4 {[%clk 0:02:10]}  Be7 {[%clk 0:02:57]} 8. Qf3 {[%clk 0:02:10]}  Qc7 {[%clk 0:02:58]} 9. O-O-O {[%clk 0:02:11]}  Nbd7 {[%clk 0:02:58]} 10. g4 {[%clk 0:02:11]}  b5 {[%clk 0:02:58]} 11. Bxf6 {[%clk 0:02:12]}  Nxf6 {[%clk 0:02:58]} 12. g5 {[%clk 0:02:12]}  Nd7 {[%clk 0:02:58]} 13. f5 {[%clk 0:02:13]}  Nc5 {[%clk 0:02:57]} 14. Rg1 {[%clk 0:02:05]}  b4 {[%clk 0:02:55]} 15. Nce2 {[%clk 0:02:01]}  Bb7 {[%clk 0:02:55]} 16. Ng3 {[%clk 0:02:00]}  Bxg5+ {[%clk 0:02:47]} 17. Kb1 {[%clk 0:02:00]}  Bf6 {[%clk 0:02:20]} 18. fxe6 {[%clk 0:01:55]}  fxe6 {[%clk 0:02:13]} 19. Nh5 {[%clk 0:01:41]}  Be5 {[%clk 0:02:05]} 20. Bh3 {[%clk 0:01:12]}  Qe7 {[%clk 0:02:02]} 21. Qg4 {[%clk 0:00:33]}  g6 {[%clk 0:01:54]} 22. Nf4 {[%clk 0:00:29]}  Bxf4 {[%clk 0:01:54]} 23. Qxf4 {[%clk 0:00:29]}  e5 {[%clk 0:01:54]} 24. Qh6 {[%clk 0:00:22]}  exd4 {[%clk 0:01:47]} 25. Rxg6 {[%clk 0:00:22]}  Bxe4 {[%clk 0:01:14]} 26. Rg7 {[%clk 0:00:21]}  Qe5 {[%clk 0:01:05]} 27. Rdg1 {[%clk 0:00:11]}  Bxc2+ {[%clk 0:00:52]} 28. Kxc2 {[%clk 0:00:11]}  Qe4+ {[%clk 0:00:52]} 29. Kd1 {[%clk 0:00:09]}  Qb1+ {[%clk 0:00:47]} 30. Ke2 {[%clk 0:00:06]}  Qd3+ {[%clk 0:00:43]} 31. Ke1 {[%clk 0:00:05]}  Qe3+ {[%clk 0:00:26]} 32. Kd1 {[%clk 0:00:04]}  Qxh6 {[%clk 0:00:26]} 33. Rg8+ {[%clk 0:00:02]}  Ke7 {[%clk 0:00:25]} 34. Rxh8 {[%clk 0:00:02]}  Rxh8 {[%clk 0:00:24]} 35. Re1+ {[%clk 0:00:03]}  Qe3 {[%clk 0:00:22]} 36. Rxe3+ {[%clk 0:00:03]}  dxe3 {[%clk 0:00:23]} 37. Ke2 {[%clk 0:00:04]}  Kf6 {[%clk 0:00:21]} 38. Kxe3 {[%clk 0:00:05]}  Re8+ {[%clk 0:00:21]} 39. Kd4 {[%clk 0:00:06]}  Re4+ {[%clk 0:00:21]} 40. Kd5 {[%clk 0:00:06]}  Rh4 {[%clk 0:00:21]} 41. Bc8 {[%clk 0:00:05]}  Rxh2 {[%clk 0:00:21]} 42. Kxd6 {[%clk 0:00:06]}  Nd3 {[%clk 0:00:21]} 43. Bxa6 {[%clk 0:00:06]}  Nxb2 {[%clk 0:00:22]} 44. Kc5 {[%clk 0:00:06]}  Rh4 {[%clk 0:00:19]} 45. Bc8 {[%clk 0:00:05]}  Rf4 {[%clk 0:00:19]} 46. Bb7 {[%clk 0:00:04]}  h5 {[%clk 0:00:19]} 47. a4 {[%clk 0:00:03]}  bxa3 {[%clk 0:00:18]} 0-1


[Site "https://www.chess.com"]

[Event "Titled Tuesday Blitz July 20 2021"]
[White "Wagner, Dennis"]
[Black "De Silva, L M S T"]
[WhiteFideId "24650684"]
[BlackFideId "9953698"]
[WhiteElo "2355"]
[BlackElo "1621"]
[Result "1-0"]
[Round "08"]
[TimeControl "180+1"]
[Date "2021.07.20"]
[WhiteClock "0:00:10"]
[BlackClock "0:00:02"]

1. c4 {[%clk 0:03:00]}  e5 {[%clk 0:02:59]} 2. d3 {[%clk 0:03:00]}  Nf6 {[%clk 0:02:58]} 3. Nf3 {[%clk 0:02:59]}  Nc6 {[%clk 0:02:59]} 4. a3 {[%clk 0:03:00]}  a5 {[%clk 0:02:58]} 5. Nc3 {[%clk 0:03:00]}  d5 {[%clk 0:02:58]} 6. cxd5 {[%clk 0:02:59]}  Nxd5 {[%clk 0:02:59]} 7. e4 {[%clk 0:03:00]}  Nb6 {[%clk 0:02:57]} 8. Be3 {[%clk 0:02:55]}  Be7 {[%clk 0:02:57]} 9. Be2 {[%clk 0:02:54]}  O-O {[%clk 0:02:57]} 10. O-O {[%clk 0:02:54]}  f5 {[%clk 0:02:57]} 11. exf5 {[%clk 0:02:15]}  Bxf5 {[%clk 0:02:58]} 12. Rc1 {[%clk 0:02:13]}  a4 {[%clk 0:02:52]} 13. Bxb6 {[%clk 0:02:03]}  cxb6 {[%clk 0:02:51]} 14. Nxa4 {[%clk 0:02:04]}  Nd4 {[%clk 0:02:44]} 15. Nxd4 {[%clk 0:02:00]}  exd4 {[%clk 0:02:45]} 16. Qb3+ {[%clk 0:01:57]}  Kh8 {[%clk 0:02:43]} 17. Nxb6 {[%clk 0:01:57]}  Ra6 {[%clk 0:02:35]} 18. Nc4 {[%clk 0:01:46]}  Rh6 {[%clk 0:02:34]} 19. f4 {[%clk 0:01:32]}  Bf6 {[%clk 0:01:38]} 20. Qxb7 {[%clk 0:01:28]}  Re8 {[%clk 0:01:33]} 21. Rfe1 {[%clk 0:01:18]}  Be4 {[%clk 0:00:58]} 22. dxe4 {[%clk 0:01:02]}  d3 {[%clk 0:00:59]} 23. Bxd3 {[%clk 0:00:30]}  Bd4+ {[%clk 0:00:50]} 24. Ne3 {[%clk 0:00:30]}  Qh4 {[%clk 0:00:49]} 25. h3 {[%clk 0:00:28]}  Qg3 {[%clk 0:00:47]} 26. Qd7 {[%clk 0:00:23]}  Bxe3+ {[%clk 0:00:46]} 27. Kh1 {[%clk 0:00:23]}  Rg8 {[%clk 0:00:37]} 28. Rxe3 {[%clk 0:00:14]}  Qxe3 {[%clk 0:00:37]} 29. Rc8 {[%clk 0:00:14]}  Rxh3+ {[%clk 0:00:07]} 30. gxh3 {[%clk 0:00:14]}  Qf3+ {[%clk 0:00:07]} 31. Kg1 {[%clk 0:00:13]}  Qg3+ {[%clk 0:00:06]} 32. Kf1 {[%clk 0:00:12]}  Qxf4+ {[%clk 0:00:07]} 33. Ke2 {[%clk 0:00:12]}  Qh2+ {[%clk 0:00:07]} 34. Kd1 {[%clk 0:00:11]}  Qg1+ {[%clk 0:00:07]} 35. Kc2 {[%clk 0:00:10]}  Qc5+ {[%clk 0:00:02]} 36. Rxc5 {[%clk 0:00:10]} 1-0


[Site "https://www.chess.com"]

[Event "Titled Tuesday Blitz July 20 2021"]
[White "Zaksaite, Salomeja"]
[Black "Gubajdullin, Alexei"]
[WhiteFideId "12801496"]
[BlackFideId "4141202"]
[WhiteElo "2002"]
[BlackElo "2403"]
[Result "1-0"]
[Round "08"]
[TimeControl "180+1"]
[Date "2021.07.21"]
[WhiteClock "0:00:10"]
[BlackClock "0:00:45"]

1. e4 {[%clk 0:03:00]}  g6 {[%clk 0:02:59]} 2. d4 {[%clk 0:02:59]}  Bg7 {[%clk 0:02:59]} 3. Nc3 {[%clk 0:02:58]}  d6 {[%clk 0:03:00]} 4. Bc4 {[%clk 0:02:58]}  Nf6 {[%clk 0:02:56]} 5. Bb3 {[%clk 0:02:56]}  O-O {[%clk 0:02:56]} 6. Qe2 {[%clk 0:02:55]}  c6 {[%clk 0:02:56]} 7. f4 {[%clk 0:02:50]}  d5 {[%clk 0:02:55]} 8. e5 {[%clk 0:02:48]}  Ne8 {[%clk 0:02:54]} 9. Nf3 {[%clk 0:02:47]}  Bg4 {[%clk 0:02:55]} 10. Be3 {[%clk 0:02:46]}  e6 {[%clk 0:02:55]} 11. h3 {[%clk 0:02:44]}  Bxf3 {[%clk 0:02:53]} 12. Qxf3 {[%clk 0:02:45]}  Nd7 {[%clk 0:02:53]} 13. Ne2 {[%clk 0:02:42]}  c5 {[%clk 0:02:51]} 14. dxc5 {[%clk 0:02:20]}  Nxc5 {[%clk 0:02:50]} 15. Bxc5 {[%clk 0:02:19]}  Qa5+ {[%clk 0:02:25]} 16. Qc3 {[%clk 0:02:18]}  Qa6 {[%clk 0:02:25]} 17. Bxf8 {[%clk 0:02:15]}  Bxf8 {[%clk 0:02:25]} 18. a3 {[%clk 0:01:42]}  Qb6 {[%clk 0:02:21]} 19. O-O-O {[%clk 0:01:37]}  Nc7 {[%clk 0:02:21]} 20. Nd4 {[%clk 0:01:33]}  a5 {[%clk 0:02:18]} 21. g4 {[%clk 0:01:23]}  a4 {[%clk 0:02:18]} 22. Ba2 {[%clk 0:01:23]}  Ra5 {[%clk 0:02:15]} 23. Kb1 {[%clk 0:00:33]}  Na6 {[%clk 0:02:11]} 24. Ka1 {[%clk 0:00:30]}  Nc5 {[%clk 0:02:10]} 25. f5 {[%clk 0:00:27]}  Ne4 {[%clk 0:02:10]} 26. Qc8 {[%clk 0:00:24]}  Rc5 {[%clk 0:02:06]} 27. Qe8 {[%clk 0:00:20]}  exf5 {[%clk 0:01:29]} 28. gxf5 {[%clk 0:00:20]}  Nf2 {[%clk 0:01:23]} 29. e6 {[%clk 0:00:20]}  fxe6 {[%clk 0:01:21]} 30. fxe6 {[%clk 0:00:19]}  Rc7 {[%clk 0:01:17]} 31. Rhf1 {[%clk 0:00:19]}  Re7 {[%clk 0:01:16]} 32. Qc8 {[%clk 0:00:17]}  Qc7 {[%clk 0:01:05]} 33. Qxc7 {[%clk 0:00:16]}  Rxc7 {[%clk 0:01:05]} 34. Rxf2 {[%clk 0:00:17]}  Bc5 {[%clk 0:01:06]} 35. e7 {[%clk 0:00:15]}  Rxe7 {[%clk 0:01:04]} 36. Bxd5+ {[%clk 0:00:16]}  Kg7 {[%clk 0:01:05]} 37. Ne6+ {[%clk 0:00:15]}  Rxe6 {[%clk 0:01:01]} 38. Bxe6 {[%clk 0:00:16]}  Bxf2 {[%clk 0:01:01]} 39. Rd7+ {[%clk 0:00:16]}  Kf6 {[%clk 0:01:02]} 40. Bg8 {[%clk 0:00:16]}  h5 {[%clk 0:01:02]} 41. Rxb7 {[%clk 0:00:16]}  g5 {[%clk 0:01:02]} 42. Rb5 {[%clk 0:00:15]}  g4 {[%clk 0:00:52]} 43. Rxh5 {[%clk 0:00:14]}  g3 {[%clk 0:00:52]} 44. Bd5 {[%clk 0:00:14]}  Bd4 {[%clk 0:00:51]} 45. Bg2 {[%clk 0:00:13]}  Kg6 {[%clk 0:00:50]} 46. Ra5 {[%clk 0:00:12]}  Kf6 {[%clk 0:00:49]} 47. Rxa4 {[%clk 0:00:12]}  Bf2 {[%clk 0:00:50]} 48. Rg4 {[%clk 0:00:11]}  Kf5 {[%clk 0:00:50]} 49. a4 {[%clk 0:00:11]}  Ke5 {[%clk 0:00:48]} 50. a5 {[%clk 0:00:11]}  Kd6 {[%clk 0:00:49]} 51. a6 {[%clk 0:00:11]}  Kc7 {[%clk 0:00:50]} 52. b4 {[%clk 0:00:11]}  Kb6 {[%clk 0:00:50]} 53. Rg6+ {[%clk 0:00:10]}  Ka7 {[%clk 0:00:49]} 54. Kb2 {[%clk 0:00:10]}  Bd4+ {[%clk 0:00:47]} 55. c3 {[%clk 0:00:10]}  Be5 {[%clk 0:00:48]} 56. Kb3 {[%clk 0:00:10]}  Kb8 {[%clk 0:00:47]} 57. Kc4 {[%clk 0:00:10]}  Ka7 {[%clk 0:00:47]} 58. Kd5 {[%clk 0:00:11]}  Bxc3 {[%clk 0:00:46]} 59. b5 {[%clk 0:00:11]}  Bb2 {[%clk 0:00:44]} 60. Rxg3 {[%clk 0:00:10]}  Kb6 {[%clk 0:00:43]} 61. Rg6+ {[%clk 0:00:10]}  Kxb5 {[%clk 0:00:43]} 62. a7 {[%clk 0:00:10]}  Kb4 {[%clk 0:00:43]} 63. a8=Q {[%clk 0:00:10]}  Kc3 {[%clk 0:00:44]} 64. Qc6+ {[%clk 0:00:10]}  Kd2 {[%clk 0:00:45]} 65. Kc4 {[%clk 0:00:09]}  Be5 {[%clk 0:00:44]} 66. Qd5+ {[%clk 0:00:10]}  Bd4 {[%clk 0:00:44]} 67. Qxd4+ {[%clk 0:00:11]}  Ke2 {[%clk 0:00:45]} 68. Bf3+ {[%clk 0:00:10]}  Kf1 {[%clk 0:00:45]} 69. Qd1+ {[%clk 0:00:10]}  Kf2 {[%clk 0:00:45]} 70. Qe2# {[%clk 0:00:10]} 1-0


[Site "https://www.chess.com"]

[Event "Titled Tuesday Blitz July 20 2021"]
[White "Aldokhin, Ivan"]
[Black "Sarana, Alexey"]
[WhiteFideId "24115720"]
[BlackFideId "24133795"]
[WhiteElo "2306"]
[BlackElo "2646"]
[Result "0-1"]
[Round "09"]
[TimeControl "180+1"]
[Date "2021.07.21"]
[WhiteClock "0:00:09"]
[BlackClock "0:00:17"]

1. e4 {[%clk 0:03:00]}  c5 {[%clk 0:00:20]} 2. Nf3 {[%clk 0:03:00]}  d6 {[%clk 0:00:19]} 3. d4 {[%clk 0:03:01]}  cxd4 {[%clk 0:00:20]} 4. Nxd4 {[%clk 0:03:01]}  Nf6 {[%clk 0:00:21]} 5. Nc3 {[%clk 0:03:02]}  a6 {[%clk 0:00:22]} 6. Bc4 {[%clk 0:03:01]}  e6 {[%clk 0:00:22]} 7. Bb3 {[%clk 0:03:01]}  b5 {[%clk 0:00:22]} 8. Qe2 {[%clk 0:02:55]}  b4 {[%clk 0:00:22]} 9. Nd1 {[%clk 0:02:44]}  Bd7 {[%clk 0:00:21]} 10. O-O {[%clk 0:02:41]}  Nc6 {[%clk 0:00:21]} 11. Nxc6 {[%clk 0:02:33]}  Bxc6 {[%clk 0:00:22]} 12. f3 {[%clk 0:02:33]}  d5 {[%clk 0:00:23]} 13. e5 {[%clk 0:02:16]}  Bb5 {[%clk 0:00:23]} 14. c4 {[%clk 0:01:20]}  bxc3 {[%clk 0:00:23]} 15. Qe1 {[%clk 0:01:20]}  Bxf1 {[%clk 0:00:22]} 16. exf6 {[%clk 0:01:20]}  Bb5 {[%clk 0:00:20]} 17. Nxc3 {[%clk 0:01:20]}  gxf6 {[%clk 0:00:20]} 18. Nxd5 {[%clk 0:01:16]}  Bd6 {[%clk 0:00:20]} 19. Bh6 {[%clk 0:01:13]}  Rg8 {[%clk 0:00:18]} 20. Rd1 {[%clk 0:01:08]}  Rg6 {[%clk 0:00:18]} 21. Bf4 {[%clk 0:00:34]}  Kf8 {[%clk 0:00:17]} 22. a4 {[%clk 0:00:28]}  exd5 {[%clk 0:00:14]} 23. Bxd6+ {[%clk 0:00:24]}  Qxd6 {[%clk 0:00:15]} 24. axb5 {[%clk 0:00:25]}  axb5 {[%clk 0:00:15]} 25. Rxd5 {[%clk 0:00:23]}  Qb6+ {[%clk 0:00:15]} 26. Kh1 {[%clk 0:00:19]}  Rd8 {[%clk 0:00:16]} 27. Rxd8+ {[%clk 0:00:14]}  Qxd8 {[%clk 0:00:17]} 28. h3 {[%clk 0:00:14]}  Rg5 {[%clk 0:00:17]} 29. Qb4+ {[%clk 0:00:14]}  Qe7 {[%clk 0:00:16]} 30. Qf4 {[%clk 0:00:12]}  Qe1+ {[%clk 0:00:16]} 31. Kh2 {[%clk 0:00:12]}  Qe5 {[%clk 0:00:17]} 32. Qxe5 {[%clk 0:00:09]}  fxe5 {[%clk 0:00:17]} 33. h4 {[%clk 0:00:10]}  Rg6 {[%clk 0:00:17]} 34. Kh3 {[%clk 0:00:09]}  Rd6 {[%clk 0:00:17]} 0-1


[Site "https://www.chess.com"]

[Event "Titled Tuesday Blitz July 20 2021"]
[White "Araujo Filho, Luiz Antonio Coel"]
[Black "Odegov, Artem"]
[WhiteFideId "2130661"]
[BlackFideId "34183644"]
[WhiteElo "2236"]
[BlackElo "2288"]
[Result "1-0"]
[Round "09"]
[TimeControl "180+1"]
[Date "2021.07.21"]
[WhiteClock "0:00:34"]
[BlackClock "0:01:08"]

1. d4 {[%clk 0:03:00]}  Nf6 {[%clk 0:02:58]} 2. Nf3 {[%clk 0:02:59]}  g6 {[%clk 0:02:47]} 3. c4 {[%clk 0:02:59]}  Bg7 {[%clk 0:02:48]} 4. Nc3 {[%clk 0:02:59]}  O-O {[%clk 0:02:49]} 5. e4 {[%clk 0:02:59]}  d6 {[%clk 0:02:50]} 6. Be2 {[%clk 0:03:00]}  e5 {[%clk 0:02:49]} 7. dxe5 {[%clk 0:03:01]}  dxe5 {[%clk 0:02:49]} 8. O-O {[%clk 0:03:01]}  c6 {[%clk 0:02:46]} 9. Qc2 {[%clk 0:03:02]}  Qc7 {[%clk 0:02:46]} 10. Rd1 {[%clk 0:03:02]}  Bg4 {[%clk 0:02:46]} 11. b4 {[%clk 0:03:02]}  Na6 {[%clk 0:02:45]} 12. b5 {[%clk 0:03:01]}  Nc5 {[%clk 0:02:42]} 13. Ba3 {[%clk 0:02:58]}  b6 {[%clk 0:02:35]} 14. bxc6 {[%clk 0:02:49]}  Qxc6 {[%clk 0:02:32]} 15. Nxe5 {[%clk 0:02:48]}  Qc8 {[%clk 0:02:31]} 16. Nxg4 {[%clk 0:02:32]}  Nxg4 {[%clk 0:02:32]} 17. Rac1 {[%clk 0:02:17]}  h5 {[%clk 0:02:27]} 18. Nd5 {[%clk 0:02:11]}  Kh8 {[%clk 0:02:25]} 19. h3 {[%clk 0:02:04]}  Ne5 {[%clk 0:02:23]} 20. f4 {[%clk 0:01:51]}  Nc6 {[%clk 0:02:21]} 21. Bb2 {[%clk 0:01:45]}  f6 {[%clk 0:02:20]} 22. e5 {[%clk 0:01:31]}  fxe5 {[%clk 0:02:21]} 23. Qxg6 {[%clk 0:01:30]}  Qf5 {[%clk 0:02:13]} 24. Qxc6 {[%clk 0:00:56]}  Rac8 {[%clk 0:01:58]} 25. Qd6 {[%clk 0:00:49]}  Ne4 {[%clk 0:01:53]} 26. Qe7 {[%clk 0:00:46]}  Rf7 {[%clk 0:01:52]} 27. Qh4 {[%clk 0:00:43]}  exf4 {[%clk 0:01:28]} 28. Bxh5 {[%clk 0:00:38]}  Bxb2 {[%clk 0:01:08]} 29. Bg6+ {[%clk 0:00:35]}  Rh7 {[%clk 0:01:08]} 30. Qxh7# {[%clk 0:00:34]} 1-0


[Site "https://www.chess.com"]